bitfinex/quotes_SOLUSD_20250616
["timestamp","ask_amount","ask_price","bid_price","bid_amount"]
[1750060824344,31.94629322,157.52,157.45,22.22927913]
[1750060824522,6.21898023,157.48,157.45,6.35122261]
[1750060824723,6.21898023,157.47,157.45,6.35122261]
[1750060825354,6.21898023,157.48,157.44,6.35162601]
[1750060826438,12.16527345,157.52,157.47,26.0]
[1750060826651,6.21898023,157.48,157.47,26.0]
[1750060827557,12.16527345,157.52,157.47,6.3501643]
[1750060827753,6.21898023,157.48,157.47,6.3501643]
[1750060828546,6.21898023,157.48,157.44,32.21898023]
[1750060828759,6.21898023,157.48,157.45,6.35122261]
[1750060828927,6.21898023,157.49,157.45,6.35122261]
[1750060830150,6.21898023,157.48,157.45,6.35122261]
[1750060830522,5.94629322,157.52,157.45,28.44825936]
[1750060830725,6.21898023,157.49,157.45,28.44825936]
[1750060832248,6.21898023,157.5,157.45,28.44825936]
[1750060832648,5.94629322,157.52,157.45,28.44825936]
[1750060832850,6.21898023,157.49,157.45,28.44825936]
[1750060833738,5.94629322,157.52,157.45,28.44825936]
[1750060834648,6.21898023,157.49,157.45,28.44825936]
[1750060835161,5.94629322,157.52,157.45,28.44825936]
[1750060835332,6.21898023,157.49,157.45,22.09703675]
[1750060836559,5.94629322,157.52,157.45,28.44825936]
[1750060836861,6.21898023,157.5,157.45,28.44825936]
[1750060837634,6.21898023,157.49,157.45,28.44825936]
[1750060837874,6.21898023,157.47,157.45,6.35122261]
[1750060838646,6.21898023,157.46,157.42,6.35243298]
[1750060838975,26.0,157.49,157.42,22.23351543]
[1750060838976,6.21898023,157.45,157.42,22.23351543]
[1750060839338,6.21898023,157.46,157.42,22.23351543]
[1750060839542,6.21898023,157.45,157.42,22.23351543]
[1750060840864,26.0,157.49,157.42,22.23351543]
[1750060841162,6.21898023,157.45,157.42,22.23351543]
[1750060841551,6.21898023,157.46,157.42,22.23351543]
[1750060845666,16.05127138,157.51,157.42,22.23351543]
[1750060845960,6.21898023,157.44,157.42,22.23351543]
[1750060846271,6.21898023,157.43,157.42,6.35243298]
[1750060846442,6.21898023,157.43,157.4,6.35324015]
[1750060846647,6.21898023,157.41,157.4,6.35324015]
[1750060846968,1.6413,157.46,157.4,6.35324015]
[1750060847271,6.21898023,157.43,157.4,6.35324015]
[1750060847450,1.6413,157.46,157.4,6.35324015]
[1750060847767,6.21898023,157.43,157.4,22.23634053]
[1750060848348,1.6413,157.46,157.4,22.23634053]
[1750060848673,6.21898023,157.43,157.4,22.23634053]
[1750060848842,6.21898023,157.44,157.4,28.45532076]
[1750060849037,26.0,157.48,157.4,28.45532076]
[1750060849038,6.21898023,157.45,157.41,6.21898023]
[1750060849365,26.0,157.48,157.41,6.21898023]
[1750060849558,6.21898023,157.45,157.41,6.21898023]
[1750060850258,6.21898023,157.45,157.42,22.23351543]
[1750060852241,52.85524886,157.5,157.42,22.23351543]
[1750060852443,6.21898023,157.45,157.42,22.23351543]
[1750060852775,6.21898023,157.46,157.42,22.23351543]
[1750060853070,6.21898023,157.45,157.42,22.23351543]
[1750060854956,6.21898023,157.43,157.42,6.35243298]
[1750060856251,26.0,157.45,157.42,6.35243298]
[1750060856449,6.21898023,157.43,157.42,6.35243298]
[1750060857082,6.21898023,157.43,157.39,15.88322257]
[1750060857373,26.0,157.45,157.39,15.88322257]
[1750060857558,6.21898023,157.45,157.41,6.21898023]
[1750060858376,6.21898023,157.44,157.39,15.88322257]
[1750060858578,6.21898023,157.44,157.4,6.21898023]
[1750060859383,6.21898023,157.43,157.41,6.35283654]
[1750060860080,18.933972,157.48,157.41,6.35283654]
[1750060860276,6.21898023,157.43,157.41,6.35283654]
[1750060860574,6.21898023,157.43,157.4,22.23634053]
[1750060861678,6.21898023,157.41,157.4,22.23634053]
[1750060861862,6.21898023,157.42,157.4,22.23634053]
[1750060862263,30.75461967,157.47,157.4,22.23634053]
[1750060862471,6.21898023,157.42,157.4,22.23634053]
[1750060863861,6.21898023,157.42,157.4,15.88310038]
[1750060864484,6.21898023,157.41,157.4,15.88310038]
[1750060865661,6.21898023,157.42,157.4,15.88310038]
[1750060866882,26.0,157.45,157.4,15.88310038]
[1750060867090,6.21898023,157.43,157.4,15.88310038]
[1750060869191,6.21898023,157.43,157.4,22.23634053]
[1750060869683,6.21898023,157.44,157.4,22.23634053]
[1750060870388,6.21898023,157.44,157.4,28.45532076]
[1750060870587,6.21898023,157.45,157.4,28.45532076]
[1750060870771,6.21898023,157.46,157.41,6.21898023]
[1750060871100,6.21898023,157.47,157.42,6.21898023]
[1750060871390,6.21898023,157.47,157.43,22.23210315]
[1750060872077,6.21898023,157.46,157.43,22.23210315]
[1750060873188,6.21898023,157.45,157.43,15.88007368]
[1750060874404,26.0,157.48,157.43,15.88007368]
[1750060874591,6.21898023,157.46,157.43,15.88007368]
[1750060875398,6.21898023,157.46,157.42,6.21898023]
[1750060876104,6.21898023,157.46,157.41,6.21898023]
[1750060877780,6.21898023,157.46,157.42,6.35243298]
[1750060877979,6.21898023,157.45,157.42,6.35243298]
[1750060878200,26.0,157.48,157.42,6.35243298]
[1750060878481,6.21898023,157.44,157.42,6.35243298]
[1750060878781,6.21898023,157.45,157.42,6.35243298]
[1750060878993,6.21898023,157.45,157.42,22.23351543]
[1750060880509,6.21898023,157.46,157.42,22.23351543]
[1750060881871,26.0,157.48,157.42,6.21898023]
[1750060882077,6.21898023,157.46,157.42,6.21898023]
[1750060882811,6.21898023,157.46,157.39,54.00597241]
[1750060883108,6.21898023,157.46,157.43,6.35202947]
[1750060883496,26.0,157.48,157.43,6.35202947]
[1750060883801,6.21898023,157.46,157.43,6.35202947]
[1750060885094,26.0,157.48,157.43,6.35202947]
[1750060885399,6.21898023,157.46,157.43,6.35202947]
[1750060885707,26.0,157.48,157.43,6.35202947]
[1750060886007,6.21898023,157.45,157.43,6.35202947]
[1750060887212,6.21898023,157.45,157.42,22.23323689]
[1750060887705,26.0,157.48,157.42,22.23323689]
[1750060888105,6.21898023,157.45,157.42,22.23323689]
[1750060890309,4.75799467,157.49,157.44,6.21898023]
[1750060890510,6.21898023,157.51,157.47,6.21898023]
[1750060891207,6.21898023,157.5,157.43,0.28432314]
[1750060891417,6.21898023,157.5,157.47,6.35041595]
[1750060892710,6.21898023,157.49,157.47,6.35041595]
[1750060893323,6.21898023,157.49,157.43,22.51642629]
[1750060893620,6.21898023,157.48,157.44,6.21898023]
[1750060896220,6.21898023,157.47,157.45,6.35122261]
[1750060896421,37.95649533,157.52,157.45,6.35122261]
[1750060896422,6.21898023,157.46,157.45,6.35122261]
[1750060896609,27.6291,157.49,157.45,6.35122261]
[1750060896816,6.21898023,157.46,157.45,6.35122261]
[1750060897322,6.21898023,157.46,157.43,22.23210315]
[1750060897509,6.21898023,157.45,157.43,22.23210315]
[1750060897908,6.21898023,157.44,157.43,6.35202947]
[1750060898114,6.21898023,157.44,157.41,6.35283654]
[1750060898423,6.21898023,157.42,157.41,6.35283654]
[1750060898795,6.21898023,157.42,157.38,6.35404752]
[1750060899002,1.5722,157.43,157.31,6.5398]
[1750060899003,6.21898023,157.39,157.34,6.35566289]
[1750060899202,1.5722,157.43,157.34,22.24410891]
[1750060899203,6.21898023,157.37,157.34,22.24410891]
[1750060899404,11.1063014,157.45,157.34,22.24410891]
[1750060899405,7.92656687,157.51,157.36,12.43796046]
[1750060899610,6.21898023,157.46,157.42,6.21898023]
[1750060900206,6.21898023,157.46,157.41,6.21898023]
[1750060901422,6.21898023,157.46,157.42,6.35243298]
[1750060902516,6.21898023,157.45,157.42,6.35243298]
[1750060902832,6.21898023,157.46,157.42,6.35243298]
[1750060905531,6.21898023,157.46,157.42,28.45249566]
[1750060907432,1.6216,157.47,157.42,28.45249566]
[1750060907653,6.21898023,157.46,157.42,28.45249566]
[1750060910620,27.6216,157.47,157.43,6.21898023]
[1750060910820,33.84058023,157.47,157.43,6.21898023]
[1750060911330,33.84058023,157.47,157.44,6.35162601]
[1750060912233,6.21898023,157.46,157.42,6.21898023]
[1750060914840,6.21898023,157.46,157.39,22.23775334]
[1750060915023,6.21898023,157.46,157.42,6.21898023]
[1750060916841,6.21898023,157.46,157.43,6.35202947]
[1750060917137,33.84058023,157.47,157.43,12.5710097]
[1750060917342,33.84058023,157.47,157.43,28.45108338]
[1750060917537,6.21898023,157.46,157.43,22.23210315]
[1750060918838,27.6216,157.47,157.39,22.23775334]
[1750060919148,6.21898023,157.46,157.42,6.21898023]
[1750060919565,7.84058023,157.47,157.43,6.21898023]
[1750060919738,9.66626814,157.51,157.46,6.21898023]
[1750060919924,6.35520372,157.51,157.46,6.21898023]
[1750060920123,6.21898023,157.5,157.45,6.21898023]
[1750060921020,1.6015,157.51,157.46,12.56979948]
[1750060921219,6.21898023,157.5,157.46,12.56979948]
[1750060921722,6.21898023,157.5,157.46,28.44684761]
[1750060921929,6.21898023,157.5,157.46,22.22786738]
[1750060922255,6.21898023,157.48,157.46,6.35081925]
[1750060922440,6.21898023,157.49,157.46,6.35081925]
[1750060923024,6.21898023,157.49,157.45,6.35122261]
[1750060923547,6.21898023,157.48,157.45,6.35122261]
[1750060924828,6.21898023,157.46,157.45,6.35122261]
[1750060925029,6.21898023,157.47,157.45,6.35122261]
[1750060925825,6.21898023,157.47,157.43,6.35202947]
[1750060928639,18.64964886,157.5,157.43,6.35202947]
[1750060928949,6.21898023,157.47,157.43,6.35202947]
[1750060930148,6.21898023,157.47,157.43,12.5710097]
[1750060930852,6.21898023,157.47,157.43,6.35202947]
[1750060931050,6.21898023,157.47,157.43,12.5710097]
[1750060931243,6.21898023,157.47,157.43,6.35202947]
[1750060931450,6.21898023,157.46,157.43,6.35202947]
[1750060931649,6.21898023,157.45,157.4,6.35324015]
[1750060931828,6.21898023,157.42,157.4,6.35324015]
[1750060932152,1.5848,157.45,157.39,6.35364381]
[1750060932153,6.21898023,157.41,157.39,6.35364381]
[1750060932561,6.21898023,157.42,157.39,6.35364381]
[1750060932873,1.5848,157.45,157.39,6.35364381]
[1750060933046,6.21898023,157.4,157.39,6.35364381]
[1750060934166,6.21898023,157.4,157.37,6.35445129]
[1750060934943,6.21898023,157.39,157.37,6.35445129]
[1750060936070,6.21898023,157.39,157.36,22.24135432]
[1750060937167,6.21898023,157.39,157.36,15.88649922]
[1750060937965,6.21898023,157.4,157.36,22.10547945]
[1750060938957,6.21898023,157.43,157.39,6.21898023]
[1750060939169,6.21898023,157.43,157.4,6.35324015]
[1750060939350,7.9611,157.45,157.4,6.35324015]
[1750060939544,6.21898023,157.43,157.4,6.35324015]
[1750060939944,6.21898023,157.42,157.4,6.35324015]
[1750060940564,6.21898023,157.42,157.39,6.35364381]
[1750060941573,7.9611,157.45,157.39,6.35364381]
[1750060941761,6.21898023,157.42,157.39,6.35364381]
[1750060942343,6.21898023,157.42,157.39,22.23775334]
[1750060943374,6.21898023,157.42,157.36,0.28432314]
[1750060943671,6.21898023,157.42,157.38,6.21898023]
[1750060944359,6.21898023,157.42,157.39,6.35364381]
[1750060945378,6.21898023,157.41,157.39,6.35364381]
[1750060946375,6.21898023,157.41,157.38,22.23858513]
[1750060946581,6.21898023,157.42,157.38,22.23858513]
[1750060948782,6.21898023,157.42,157.38,28.45756536]
[1750060950262,6.21898023,157.42,157.38,22.23858513]
[1750060950582,6.21898023,157.42,157.38,28.45756536]
[1750060951777,6.21898023,157.43,157.38,28.45756536]
[1750060952363,7.9611,157.45,157.38,28.45756536]
[1750060952551,6.21898023,157.42,157.38,28.45756536]
[1750060954502,6.21898023,157.43,157.38,28.45756536]
[1750060955080,6.21898023,157.42,157.38,28.45756536]
[1750060957282,6.21898023,157.43,157.39,6.21898023]
[1750060957589,1.5848,157.45,157.39,6.21898023]
[1750060957590,32.21898023,157.44,157.39,6.21898023]
[1750060957771,6.21898023,157.43,157.38,28.45756536]
[1750060958871,6.21898023,157.43,157.39,6.21898023]
[1750060959380,6.21898023,157.43,157.4,6.35324015]
[1750060961391,6.21898023,157.43,157.38,22.10351784]
[1750060961570,6.21898023,157.43,157.38,28.45756536]
[1750060962096,26.0,157.44,157.38,28.45756536]
[1750060962271,6.21898023,157.43,157.38,28.45756536]
[1750060968897,3.98189946,157.43,157.38,26.22048459]
[1750060969390,3.98189946,157.42,157.38,22.23858513]
[1750060970881,6.22258564,157.42,157.38,22.23858513]
[1750060973480,6.22258564,157.41,157.38,22.23858513]
[1750060974782,6.22258564,157.41,157.38,6.35404752]
[1750060976913,6.22258564,157.41,157.37,6.35445129]
[1750060981189,30.75078826,157.44,157.37,22.24057952]
[1750060981394,32.22258564,157.44,157.39,6.22258564]
[1750060982619,26.0,157.44,157.4,6.35324015]
[1750060983819,26.0,157.44,157.4,12.57582579]
[1750060983992,32.22258564,157.44,157.4,12.57582579]
[1750060984821,4.75078826,157.46,157.43,6.22258564]
[1750060985114,10.9733739,157.52,157.45,6.22258564]
[1750060985290,10.9733739,157.52,157.47,6.22258564]
[1750060985717,10.9733739,157.52,157.48,6.22258564]
[1750060985933,6.22258564,157.51,157.47,6.22258564]
[1750060986095,6.22258564,157.51,157.48,6.3500127]
[1750060988203,20.21079579,157.53,157.5,6.22258564]
[1750060988718,20.21079579,157.53,157.49,6.22258564]
[1750060989017,6.22258564,157.56,157.52,6.22258564]
[1750060989194,6.22258564,157.56,157.53,6.3479972]
[1750060989593,6.22258564,157.57,157.53,6.3479972]
[1750060989817,6.22258564,157.57,157.53,12.57058284]
[1750060990118,7.81578564,157.58,157.53,12.57058284]
[1750060990296,7.81578564,157.58,157.54,6.22258564]
[1750060990497,33.81578564,157.58,157.53,28.44057585]
[1750060991419,7.81578564,157.58,157.53,28.44057585]
[1750060991720,33.81578564,157.58,157.53,28.44057585]
[1750060992022,6.22258564,157.57,157.53,22.21799021]
[1750060992224,6.22258564,157.54,157.53,6.3479972]
[1750060993520,18.64964886,157.57,157.51,6.34880325]
[1750060993725,6.22258564,157.55,157.51,12.57138889]
[1750060995328,6.22258564,157.56,157.51,12.57138889]
[1750060997746,6.22258564,157.56,157.51,28.44339701]
[1750060997914,27.5932,157.58,157.52,6.22258564]
[1750060998104,6.22258564,157.56,157.52,6.22258564]
[1750060998304,6.22258564,157.57,157.52,6.22258564]
[1750060998503,27.5932,157.58,157.53,6.22258564]
[1750060998706,6.22258564,157.57,157.53,6.22258564]
[1750060999635,6.22258564,157.57,157.54,6.34759426]
[1750061002920,6.22258564,157.57,157.53,6.3479972]
[1750061004435,27.5932,157.58,157.53,6.3479972]
[1750061004740,6.22258564,157.57,157.53,6.3479972]
[1750061005031,27.5932,157.58,157.53,6.22258564]
[1750061005208,6.22258564,157.57,157.53,6.22258564]
[1750061005534,6.22258564,157.57,157.51,15.87200812]
[1750061005707,6.22258564,157.57,157.53,6.22258564]
[1750061006236,6.22258564,157.57,157.54,6.34759426]
[1750061007023,21.96068437,157.6,157.54,28.43916555]
[1750061007024,6.22258564,157.59,157.54,28.43916555]
[1750061007720,6.22258564,157.58,157.54,28.43916555]
[1750061011438,32.3507,157.61,157.54,28.43916555]
[1750061011737,6.22258564,157.58,157.54,28.43916555]
[1750061013135,32.3507,157.61,157.54,28.43916555]
[1750061013351,6.22258564,157.58,157.54,28.43916555]
[1750061013844,6.22258564,157.57,157.54,22.21657991]
[1750061015133,6.22258564,157.57,157.54,6.34759426]
[1750061016625,6.22258564,157.55,157.52,6.3484002]
[1750061016824,6.22258564,157.53,157.49,6.34960949]
[1750061017011,6.22258564,157.52,157.49,6.34960949]
[1750061017913,6.22258564,157.51,157.48,6.3500127]
[1750061018736,18.64964886,157.54,157.48,6.3500127]
[1750061018911,6.22258564,157.51,157.48,6.3500127]
[1750061019520,6.22258564,157.51,157.47,6.35041595]
[1750061021842,6.22258564,157.52,157.47,28.44904147]
[1750061022043,6.22258564,157.52,157.48,6.22258564]
[1750061022431,6.22258564,157.54,157.49,6.22258564]
[1750061022629,6.22258564,157.54,157.47,22.22645583]
[1750061022841,6.22258564,157.54,157.49,6.22258564]
[1750061023324,6.22258564,157.54,157.5,6.34920634]
[1750061025246,6.22258564,157.53,157.5,6.34920634]
[1750061025422,6.22258564,157.51,157.46,15.87616825]
[1750061025742,6.22258564,157.49,157.46,15.87616825]
[1750061026042,6.22258564,157.5,157.46,15.87616825]
[1750061026847,6.22258564,157.5,157.46,22.2269875]
[1750061028527,6.22258564,157.49,157.46,22.2269875]
[1750061029145,6.22258564,157.5,157.46,22.2269875]
[1750061030649,6.22258564,157.5,157.46,28.44957314]
[1750061031135,26.0,157.52,157.46,28.44957314]
[1750061031330,6.22258564,157.5,157.46,28.44957314]
[1750061035452,6.22258564,157.51,157.46,28.44957314]
[1750061036340,6.22258564,157.51,157.47,6.22258564]
[1750061036541,6.22258564,157.51,157.46,22.2269875]
[1750061036740,6.22258564,157.51,157.47,6.22258564]
[1750061036956,6.22258564,157.52,157.47,6.22258564]
[1750061037648,34.33333333,157.53,157.47,6.22258564]
[1750061037649,6.22258564,157.51,157.47,6.22258564]
[1750061037964,34.33333333,157.53,157.47,6.22258564]
[1750061038144,6.22258564,157.51,157.47,6.22258564]
[1750061039136,6.22258564,157.51,157.48,6.3500127]
[1750061043647,6.22258564,157.5,157.48,6.3500127]
[1750061043841,6.22258564,157.49,157.48,6.3500127]
[1750061044467,6.22258564,157.49,157.45,6.35122261]
[1750061044681,6.22258564,157.47,157.45,6.35122261]
[1750061044959,6.22258564,157.46,157.45,6.35122261]
[1750061045267,26.0,157.49,157.45,6.35122261]
[1750061045268,6.22258564,157.47,157.45,6.35122261]
[1750061045556,6.22258564,157.47,157.43,22.31703609]
[1750061048850,6.22258564,157.47,157.43,28.53962173]
[1750061049473,6.22258564,157.48,157.43,28.53962173]
[1750061050578,6.22258564,157.48,157.43,22.18759226]
[1750061051672,6.22258564,157.48,157.43,28.53962173]
[1750061052179,6.22258564,157.48,157.43,22.31703609]
[1750061052352,6.22258564,157.48,157.43,28.53962173]
[1750061055978,6.22258564,157.47,157.43,28.53962173]
[1750061056561,6.22258564,157.47,157.43,22.18759226]
[1750061057077,3.97969276,157.47,157.43,19.94469938]
[1750061057989,1.638,157.52,157.46,3.97969276]
[1750061058160,5.61769276,157.52,157.47,3.97969276]
[1750061059293,5.61769276,157.52,157.48,6.3500127]
[1750061059478,3.97969276,157.51,157.48,6.3500127]
[1750061060980,6.21540943,157.51,157.47,6.21540943]
[1750061061561,1.638,157.52,157.47,6.21540943]
[1750061061766,6.21540943,157.51,157.47,6.21540943]
[1750061061969,6.21540943,157.5,157.46,28.44327681]
[1750061062368,6.21540943,157.49,157.46,6.35081925]
[1750061062992,6.21540943,157.48,157.46,6.35081925]
[1750061063304,6.21540943,157.47,157.43,0.0858021]
[1750061063601,6.21540943,157.45,157.43,0.0858021]
[1750061064472,6.21540943,157.46,157.43,0.0858021]
[1750061065785,6.21540943,157.46,157.43,6.43783157]
[1750061065970,26.0,157.48,157.43,6.43783157]
[1750061066293,6.21540943,157.45,157.43,6.43783157]
[1750061067574,6.21540943,157.45,157.43,0.0858021]
[1750061068197,26.0,157.48,157.43,0.0858021]
[1750061068497,26.0,157.48,157.44,6.21540943]
[1750061068705,32.21540943,157.48,157.44,6.21540943]
[1750061068895,26.0,157.48,157.44,6.21540943]
[1750061069074,32.21540943,157.48,157.44,6.21540943]
[1750061069880,32.21540943,157.48,157.45,6.35122261]
[1750061072011,32.21540943,157.48,157.44,6.35162601]
[1750061072876,148.638,157.52,157.45,6.21540943]
[1750061073072,6.21540943,157.5,157.46,6.21540943]
[1750061074094,6.21540943,157.5,157.47,6.35041595]
[1750061076293,6.21540943,157.51,157.47,12.56582538]
[1750061076609,6.21540943,157.51,157.46,15.87685877]
[1750061076818,6.21540943,157.51,157.47,6.21540943]
[1750061077616,1.638,157.52,157.47,6.21540943]
[1750061077780,6.21540943,157.52,157.48,6.21540943]
[1750061078907,6.21540943,157.52,157.49,6.34960949]
[1750061079203,40.54874276,157.53,157.49,12.56501892]
[1750061080340,40.54874276,157.53,157.45,54.26971532]
[1750061080341,6.21540943,157.52,157.45,54.26971532]
[1750061080506,6.21540943,157.51,157.47,6.21540943]
[1750061082697,6.21540943,157.51,157.48,22.22504445]
[1750061088638,6.21540943,157.51,157.45,53.98539218]
[1750061088935,6.21540943,157.51,157.47,6.21540943]
[1750061090606,6.21540943,157.51,157.48,6.3500127]
[1750061092344,6.21540943,157.51,157.48,22.22504445]
[1750061094743,6.21540943,157.52,157.48,22.22504445]
[1750061094917,6.21540943,157.52,157.47,6.21540943]
[1750061094918,3.97764822,157.52,157.47,3.97764822]
[1750061096244,3.97764822,157.52,157.45,53.98539218]
[1750061096537,3.97764822,157.52,157.48,22.22504445]
[1750061098046,8.33333333,157.53,157.49,3.97764822]
[1750061098212,12.31098155,157.53,157.49,3.97764822]
[1750061098414,12.31098155,157.53,157.5,22.22222221]
[1750061099441,3.97764822,157.51,157.5,22.22222221]
[1750061099655,3.97764822,157.52,157.5,22.22222221]
[1750061100331,8.33333333,157.53,157.51,3.97764822]
[1750061100642,8.33333333,157.53,157.52,10.32604842]
[1750061102520,8.33333333,157.53,157.52,36.22604842]
[1750061102939,8.33333333,157.53,157.52,38.45784966]
[1750061105442,6.20944946,157.58,157.52,54.32885016]
[1750061105646,6.20944946,157.59,157.54,6.20944946]
[1750061106954,6.20944946,157.59,157.55,6.34719136]
[1750061107538,6.20944946,157.58,157.55,6.34719136]
[1750061108644,1.5084,157.6,157.55,6.34719136]
[1750061108827,6.20944946,157.58,157.55,6.34719136]
[1750061110463,6.20944946,157.58,157.54,15.86864816]
[1750061110632,6.20944946,157.58,157.54,22.07809762]
[1750061111733,6.20944946,157.58,157.54,28.42569188]
[1750061115960,6.20944946,157.59,157.54,28.42569188]
[1750061116146,6.20944946,157.59,157.55,6.20944946]
[1750061116347,6.20944946,157.59,157.54,22.21624242]
[1750061116542,6.20944946,157.59,157.55,6.20944946]
[1750061117138,6.20944946,157.59,157.56,6.34678852]
[1750061117338,1.5084,157.6,157.56,6.34678852]
[1750061117554,6.20944946,157.59,157.56,6.34678852]
[1750061120665,1.5084,157.6,157.56,6.34678852]
[1750061120853,6.20944946,157.59,157.56,6.34678852]
[1750061124947,3.97400004,157.59,157.56,6.34678852]
[1750061130452,3.97400004,157.59,157.55,6.34719136]
[1750061130973,1.5084,157.6,157.55,6.34719136]
[1750061131175,3.97400004,157.59,157.55,10.3211914]
[1750061132916,1.5084,157.6,157.55,26.18916981]
[1750061133052,5.48240004,157.6,157.56,3.97400004]
[1750061133381,5.48240004,157.6,157.55,26.18916981]
[1750061133765,1.5084,157.6,157.55,26.18916981]
[1750061134081,5.48240004,157.6,157.55,26.18916981]
[1750061134795,1.5084,157.6,157.55,26.18916981]
[1750061134993,5.48240004,157.6,157.55,26.18916981]
[1750061136483,5.48240004,157.6,157.55,19.84197845]
[1750061137483,5.48240004,157.6,157.55,19.84197845]
[1750061137857,5.48240004,157.6,157.55,26.18916981]
[1750061138177,1.5084,157.6,157.55,22.21516977]
[1750061138382,3.97400004,157.58,157.55,22.21516977]
[1750061138569,3.97400004,157.58,157.55,6.34719136]
[1750061139656,1.5084,157.6,157.55,6.34719136]
[1750061139858,3.97400004,157.58,157.55,6.34719136]
[1750061141872,3.97400004,157.59,157.55,6.34719136]
[1750061143290,3.97400004,157.59,157.55,10.3211914]
[1750061143671,5.48240004,157.6,157.55,10.3211914]
[1750061144172,4.74172287,157.62,157.57,3.97400004]
[1750061144370,162.64428817,157.68,157.61,3.97400004]
[1750061144556,3.97400004,157.73,157.67,3.97400004]
[1750061144760,3.97400004,157.73,157.63,0.28432314]
[1750061144761,4.75608603,157.72,157.69,3.97400004]
[1750061145165,26.0,157.71,157.62,0.28432314]
[1750061145373,3.97400004,157.7,157.66,3.97400004]
[1750061145768,29.97400004,157.71,157.66,3.97400004]
[1750061146086,29.97400004,157.71,157.67,3.97400004]
[1750061146282,29.97400004,157.71,157.67,10.31618293]
[1750061146465,3.97400004,157.7,157.66,3.97400004]
[1750061146783,18.64964886,157.72,157.66,3.97400004]
[1750061147082,6.20042847,157.7,157.66,6.20042847]
[1750061147289,14.5337618,157.67,157.61,103.81439784]
[1750061147506,14.5337618,157.67,157.62,6.20042847]
[1750061148376,14.5337618,157.67,157.62,12.54464248]
[1750061148694,14.5337618,157.67,157.63,6.20042847]
[1750061149473,14.5337618,157.67,157.62,12.54464248]
[1750061149797,8.33333333,157.67,157.62,12.54464248]
[1750061149984,14.5337618,157.67,157.62,12.54464248]
[1750061150399,8.33333333,157.67,157.63,6.20042847]
[1750061150571,8.33333333,157.67,157.64,6.20042847]
[1750061151989,8.33333333,157.67,157.63,6.20042847]
[1750061152795,8.33333333,157.67,157.63,12.54426465]
[1750061153192,14.5337618,157.67,157.63,6.20042847]
[1750061155009,8.33333333,157.67,157.62,6.34425252]
[1750061155306,14.5337618,157.67,157.63,6.20042847]
[1750061155882,8.33333333,157.67,157.63,12.54427841]
[1750061156081,6.20042847,157.64,157.61,103.81439784]
[1750061156410,18.64964886,157.66,157.61,103.81439784]
[1750061156411,6.20042847,157.62,157.61,103.81439784]
[1750061157682,26.0,157.63,157.61,103.81439784]
[1750061157881,6.20042847,157.62,157.61,103.81439784]
[1750061158306,26.0,157.63,157.61,103.81439784]
[1750061158604,6.20042847,157.62,157.61,103.81439784]
[1750061160692,32.20042847,157.62,157.61,103.81439784]
[1750061164383,38.54480101,157.62,157.61,103.81439784]
[1750061164601,38.54480101,157.62,157.55,6.34705961]
[1750061164808,6.20042847,157.58,157.55,6.34705961]
[1750061166423,6.20042847,157.57,157.54,6.34759426]
[1750061167131,6.20042847,157.58,157.54,6.34759426]
[1750061167317,6.20042847,157.58,157.54,12.54802273]
[1750061169400,32.34437254,157.62,157.54,6.20042847]
[1750061169608,6.20042847,157.61,157.57,6.20042847]
[1750061169809,6.20042847,157.59,157.54,6.20042847]
[1750061170113,18.64964886,157.61,157.54,6.20042847]
[1750061170319,6.20042847,157.59,157.54,6.20042847]
[1750061170514,26.0,157.62,157.55,6.20042847]
[1750061170725,26.0,157.62,157.53,48.09799021]
[1750061170726,6.20042847,157.6,157.56,6.20042847]
[1750061171035,6.20042847,157.61,157.53,48.09799021]
[1750061171197,6.20042847,157.61,157.56,6.20042847]
[1750061171400,6.20042847,157.6,157.57,6.34638573]
[1750061171627,26.0,157.62,157.57,12.5468142]
[1750061171804,6.20042847,157.61,157.57,12.5468142]
[1750061173317,6.20042847,157.6,157.57,6.34638573]
[1750061174132,6.20042847,157.59,157.57,6.34638573]
[1750061175929,6.20042847,157.58,157.55,15.86783948]
[1750061177977,6.20042847,157.58,157.55,22.21503084]
[1750061180305,6.20042847,157.58,157.55,15.86783948]
[1750061181528,6.20042847,157.58,157.54,6.20042847]
[1750061182324,6.20042847,157.57,157.53,54.29841868]
[1750061183462,6.20042847,157.57,157.53,28.41841868]
[1750061184560,6.20042847,157.59,157.53,22.21799021]
[1750061184722,6.20042847,157.6,157.53,6.3479972]
[1750061184923,6.20042847,157.56,157.53,6.3479972]
[1750061186539,6.20042847,157.56,157.52,22.21938214]
[1750061187039,6.20042847,157.56,157.52,28.41981061]
[1750061187552,6.20042847,157.57,157.52,28.41981061]
[1750061187757,6.20042847,157.57,157.53,6.20042847]
[1750061188051,6.20042847,157.57,157.52,22.21938214]
[1750061188256,6.20042847,157.57,157.53,6.20042847]
[1750061188431,26.0,157.6,157.53,6.20042847]
[1750061188638,26.0,157.6,157.55,6.20042847]
[1750061188853,26.0,157.6,157.54,6.20042847]
[1750061188854,6.20042847,157.59,157.54,6.20042847]
[1750061190266,6.20042847,157.59,157.55,6.34719136]
[1750061192557,6.20042847,157.58,157.55,6.34719136]